fUSD/lending_fUSD_20240607
["ID","MTS","AMOUNT","RATE_DAILY","PERIOD"]
[328743705,1717761046446,-1732.56080445,0.00029858,4]
[328743724,1717761958166,-334.05550047,0.00017187,2]
[328743725,1717761958190,-327.03263673,0.00017188,2]
[328743726,1717761958214,-238.09718907,0.00017188,2]
[328743727,1717761958237,-155.0,0.00017189,2]
[328743728,1717761958260,-1067.21630614,0.0001719,2]
[328743729,1717761958283,-205.94174335,0.0001719,2]
[328743730,1717761958305,-208.1113018,0.00017191,2]
[328743731,1717761958328,-296.68069609,0.00017191,2]
[328743732,1717761958348,-155.0,0.00017192,2]
[328743733,1717761958369,-3099.6396543,0.00017192,2]
[328743734,1717761958392,-26979.48151238,0.00017247,2]
[328743735,1717761958414,-9715.991119,0.00017258,2]
[328743736,1717761997109,-3136.90704363,0.00017258,2]
[328743737,1717762039563,-223.49726315,0.00017258,2]
[328743738,1717762039586,-700.0,0.000218,2]
[328743739,1717762039608,-2679.0,0.000218,2]
[328743740,1717762039631,-288.66,0.00024384,2]
[328743741,1717762039653,-1250.0,0.00025,2]
[328743742,1717762039676,-481.31,0.0002584,2]
[328743743,1717762039698,-152.0,0.0002624,3]
[328743744,1717762039720,-1300.0,0.00027,2]
[328743745,1717762039742,-260.5,0.00027768,2]
[328743746,1717762039764,-1236.96,0.00027769,3]
[328743747,1717762039787,-250.0,0.00027824,2]
[328743748,1717762039810,-14307.0,0.00027824,2]
[328743749,1717762039835,-171.48,0.00027836,2]
[328743750,1717762039856,-153.871108,0.00027873,2]
[328743751,1717762039879,-250.0,0.00027876,2]
[328743752,1717762039900,-250.0,0.00027912,2]
[328743753,1717762039922,-501.11,0.00027933,2]
[328743754,1717762039945,-363.7,0.00028,10]
[328743755,1717762039966,-205.94174335,0.00028028,2]
[328743756,1717762039989,-1000.0,0.00028029,2]
[328743757,1717762040011,-481.31,0.00028103,2]
[328743758,1717762040033,-10968.0,0.000283,5]
[328743759,1717762040059,-1656.74564396,0.00028665,2]
[328743760,1717762048107,-155.0,0.00028027,2]
[328743761,1717762048130,-6465.51217879,0.00028664,3]
[328743762,1717762050124,-6244.58404545,0.00028664,3]
[328743763,1717762050145,-9955.63672398,0.00028665,2]
[328743764,1717762050170,-245.67754441,0.00029337,2]
[328743765,1717762050192,-155.34803244,0.00029338,2]
[328743766,1717762050216,-152.86173422,0.00029397,2]
[328743767,1717762050240,-245.67754441,0.00029458,2]
[328743768,1717762050261,-164.79169402,0.00029466,2]
[328743769,1717762050284,-158.59568261,0.00029548,2]
[328743770,1717762050308,-155.41044275,0.00029582,2]
[328743771,1717762050330,-163.54975908,0.00029598,2]
[328743772,1717762050357,-391.52845119,0.000296,2]
[328743773,1717762050381,-500.0,0.00029618,2]
[328743774,1717762050405,-306.72232193,0.00029733,15]
[328743775,1717762050429,-306.72232188,0.00029752,15]
[328743776,1717762050453,-769.58929999,0.00029753,15]
[328743777,1717762050477,-26356.6181,0.00029758,2]
[328743778,1717762050500,-4743.0088,0.00029761,2]
[328743779,1717762050524,-186.31705124,0.00029761,2]
[328743780,1717762050549,-326.13339256,0.00029761,2]
[328743781,1717762050572,-152.86173422,0.00029761,2]
[328743782,1717762050595,-186.31705119,0.00029761,2]
[328743783,1717762050620,-186.31705119,0.00029762,2]
[328743784,1717762050642,-186.31705119,0.00029762,2]
[328743785,1717762050665,-186.31705119,0.00029762,2]
[328743786,1717762050689,-186.31705119,0.00029762,2]
[328743787,1717762050711,-186.31705119,0.00029763,2]
[328743788,1717762050737,-302.83274006,0.00029763,2]
[328743789,1717762050762,-160.54440843,0.00029763,2]
[328743790,1717762050786,-186.31705119,0.00029763,2]
[328743791,1717762050808,-913.59022295,0.00029763,2]
[328743792,1717762050832,-769.58929999,0.00029769,15]
[328743793,1717762050860,-306.72232188,0.0002977,15]
[328743794,1717762050883,-302.83274006,0.00029775,2]
[328743795,1717762050907,-769.58929999,0.00029786,15]
[328743796,1717762050934,-302.83274006,0.00029788,2]
[328743797,1717762050957,-306.72232188,0.00029789,15]
[328743798,1717762050980,-159.68921354,0.00029797,2]
[328743799,1717762051003,-160.0,0.000298,2]
[328743800,1717762051025,-1009.22,0.000298,2]
[328743801,1717762051052,-150.0,0.000298,6]
[328743802,1717762051077,-302.83274006,0.000298,2]
[328743803,1717762051102,-769.58929999,0.00029802,15]
[328743804,1717762051126,-155.41044275,0.00029807,2]
[328743805,1717762051150,-306.72232188,0.00029807,15]
[328743806,1717762051173,-302.83274006,0.00029813,2]
[328743807,1717762051196,-769.58929999,0.00029818,15]
[328743808,1717762051218,-302.83274006,0.00029825,2]
[328743809,1717762051241,-306.72232188,0.00029826,15]
[328743810,1717762051263,-913.59022293,0.00029832,2]
[328743811,1717762051286,-150.5,0.00029833,15]
[328743812,1717762051308,-150.5,0.00029833,15]
[328743813,1717762051330,-150.5,0.00029833,15]
[328743814,1717762051352,-150.5,0.00029833,15]
[328743815,1717762051376,-769.58929999,0.00029835,15]
[328743816,1717762051398,-302.83274006,0.00029838,2]
[328743817,1717762051419,-171.45,0.00029843,15]
[328743818,1717762051442,-150.5,0.00029843,15]
[328743819,1717762051465,-150.5,0.00029843,15]
[328743820,1717762051488,-150.5,0.00029843,15]
[328743821,1717762051510,-150.5,0.00029843,15]
[328743822,1717762051533,-150.5,0.00029843,15]
[328743823,1717762051557,-306.72232188,0.00029844,15]
[328743824,1717762051580,-302.83274006,0.0002985,2]
[328743825,1717762051607,-769.58929999,0.00029851,15]
[328743826,1717762051629,-152.81,0.00029853,2]
[328743827,1717762051652,-152.81,0.00029853,2]
[328743828,1717762051677,-152.81,0.00029853,2]
[328743829,1717762051700,-201.39732545,0.00029853,2]
[328743830,1717762051722,-150.5,0.00029853,15]
[328743831,1717762051745,-150.5,0.00029853,15]
[328743832,1717762051771,-150.5,0.00029853,15]
[328743833,1717762051799,-150.5,0.00029853,15]
[328743834,1717762051822,-150.5,0.00029853,15]
[328743835,1717762051845,-150.5,0.00029853,15]
[328743836,1717762051871,-201.0,0.00029853,15]
[328743837,1717762051896,-575.37639881,0.00029855,2]
[328743838,1717762051919,-951.82536,0.00029856,2]
[328743839,1717762051942,-49853.4839145,0.00029858,4]
[328743862,1717762232299,-645.50901128,0.00017252,2]
[328743863,1717762232310,-506.54758575,0.00017253,2]
[328743864,1717762232320,-201.2,0.00017254,2]
[328743865,1717762232329,-226.6238354,0.000201,2]
[328743866,1717762232339,-260.5,0.00027723,2]
[328743867,1717762232349,-155.0,0.00027724,2]
[328743868,1717762232360,-205.94174335,0.00027725,2]
[328743869,1717762232370,-203.79,0.00027727,2]
[328743870,1717762232381,-180.514959,0.00027732,2]
[328743871,1717762232391,-177.489144,0.00027732,2]
[328743872,1717762232402,-151.79768,0.00027732,2]
[328743873,1717762232412,-151.79768,0.00028426,2]
[328743874,1717762232422,-464.36,0.00028437,2]
[328743875,1717762232432,-151.79768,0.00029119,2]
[328743876,1717762232442,-374.45522724,0.00029171,2]
[328743877,1717762232455,-4967.66577276,0.00029171,2]
[328743878,1717762232465,-5127.0,0.00029171,2]
[328743879,1717762232475,-1470.0,0.00029171,2]
[328743880,1717762232485,-38034.0,0.00029171,2]
[328743881,1717762232495,-457.14062155,0.00029264,2]
[328743882,1717762232506,-151.0,0.0002932,7]
[328743883,1717762232517,-157.80060782,0.00029446,2]
[328743884,1717762232528,-197.47,0.00029541,2]
[328743885,1717762232538,-249.997935,0.00029557,4]
[328743886,1717762232550,-200.23,0.00029626,2]
[328743887,1717762232559,-3747.4186,0.00029658,2]
[328743888,1717762232569,-245.67754441,0.00029749,2]
[328743889,1717762232579,-7500.0,0.00029761,2]
[328743890,1717762232588,-208.25733661,0.00029772,2]
[328743891,1717762232622,-37.4202078,0.00029772,2]
[328743892,1717762232632,-245.67754441,0.00029796,2]
[328743893,1717762232642,-1011.7,0.000298,2]
[328743894,1717762232651,-150.0,0.000298,6]
[328743895,1717762232661,-217.04,0.00029851,10]
[328743896,1717762232670,-152.81,0.00029853,2]
[328743897,1717762232680,-152.81,0.00029853,2]
[328743898,1717762232689,-197.01,0.00029853,15]
[328743899,1717762232699,-150.01,0.00029855,2]
[328743900,1717762232710,-2301.50559525,0.00029855,2]
[328743901,1717762232720,-190.21633,0.00029856,2]
[328743902,1717762232730,-17424.07274544,0.00029858,4]
[328743903,1717762232744,-2686.00226037,0.00029858,4]
[328743904,1717762232757,-684.71908266,0.00029858,4]
[328743905,1717762232774,-657.25,0.00029858,4]
[328743906,1717762234095,-502.90722895,0.00029858,4]
[328743907,1717762235733,-937.56930127,0.00027435,2]
[328743908,1717762235744,-813.59742484,0.00029858,4]
[328743909,1717762235754,-150.0,0.00029858,2]
[328743910,1717762235763,-150.0,0.00029858,2]
[328743911,1717762235773,-150.0,0.00029858,2]
[328743912,1717762235783,-150.0,0.00029858,2]
[328743913,1717762235792,-150.0,0.00029858,2]
[328743914,1717762235801,-150.0,0.00029858,2]
[328743915,1717762235811,-150.0,0.00029858,2]
[328743916,1717762235821,-150.0,0.00029858,2]
[328743917,1717762235831,-150.0,0.00029858,2]
[328743918,1717762235841,-150.0,0.00029858,2]
[328743919,1717762235851,-150.0,0.00029858,2]
[328743920,1717762235860,-150.0,0.00029858,2]
[328743921,1717762235870,-150.0,0.00029858,2]
[328743922,1717762235880,-150.0,0.00029858,2]
[328743923,1717762235890,-196.22,0.00029858,2]
[328743924,1717762235900,-500.0,0.0002986,2]
[328743925,1717762235910,-500.0,0.0002986,2]
[328743926,1717762235921,-796.0,0.0002986,2]
[328743927,1717762235932,-500.0,0.0002986,2]
[328743928,1717762235943,-408.959789,0.00029861,2]
[328743929,1717762235956,-5447.99849166,0.00029861,2]
[328743930,1717762235967,-155.0,0.00029861,2]
[328743931,1717762235977,-155.0,0.00029861,2]
[328743933,1717762235987,-2055.69464172,0.00029861,2]
[328743935,1717762235997,-155.0,0.00029861,2]
[328743937,1717762236007,-195.68427479,0.00029861,2]
[328743939,1717762236019,-155.0,0.00029861,2]
[328743940,1717762236028,-1261.07267491,0.00029861,2]
[328743941,1717762236038,-411.63245029,0.00029861,2]
[328743942,1717762236048,-3017.61072444,0.00029861,2]
[328743943,1717762236059,-1276.38374304,0.00029861,2]
[328743944,1717762236068,-155.0,0.00029861,2]
[328743945,1717762236078,-2236.93499823,0.00029861,2]
[328743946,1717762236089,-1509.86007466,0.00029861,2]
[328743947,1717762236098,-576.79273475,0.00029861,7]
[328743948,1717762236107,-155.0,0.00029861,2]
[328743949,1717762236116,-155.4354829,0.00029861,2]
[328743950,1717762236127,-2334.89595111,0.00029861,2]
[328743951,1717762236136,-718.87490575,0.00029861,2]
[328743952,1717762236146,-1804.68755728,0.00029861,2]
[328743953,1717762236156,-157.97443899,0.00029861,2]
[328743954,1717762236169,-1191.68195815,0.00029861,2]
[328743955,1717762236180,-155.43008072,0.00029861,2]
[328743956,1717762236189,-1125.0145481,0.00029861,2]
[328743957,1717762236199,-428.08608802,0.00029861,2]
[328743958,1717762236209,-1218.13011893,0.00029861,2]
[328743959,1717762236219,-1275.81682997,0.00029861,2]
[328743960,1717762236228,-4035.21277532,0.00029861,2]
[328743961,1717762236238,-4355.52086188,0.00029861,2]
[328743962,1717762236248,-155.0,0.00029861,2]
[328743963,1717762236258,-247.35049961,0.00029861,2]
[328743964,1717762236270,-808.43729225,0.00029861,2]
[328743965,1717762236280,-2365.45822452,0.00029861,2]
[328743966,1717762236290,-265.85210799,0.00029861,2]
[328743967,1717762236299,-536.90836236,0.00029861,3]
[328743968,1717762236316,-332.28214316,0.00029861,3]
[328743969,1717762236326,-255.91381025,0.00029861,3]
[328743970,1717762236335,-1712.01646765,0.00029861,2]
[328743971,1717762236345,-242.8009726,0.00029861,2]
[328743972,1717762236356,-45394.97858695,0.00029861,2]
[328743973,1717762236368,-509.8410942,0.00029861,2]
[328743983,1717762238188,-1002.45605065,0.00029861,2]
[328743984,1717762238200,-69339.65077097,0.00029861,2]
[328743985,1717762238253,-87476.44309122,0.00029861,2]
[328743986,1717762238265,-411.07674439,0.00029861,2]
[328743987,1717762238275,-2609.61923201,0.00029861,2]
[328743988,1717762238284,-781.55564957,0.00029861,2]
[328743989,1717762238293,-321.75766818,0.00029861,2]
[328743990,1717762238302,-793.67449556,0.00029861,2]
[328743991,1717762238312,-155.35143462,0.00029861,2]
[328743992,1717762238322,-265.73742083,0.00029861,2]
[328743993,1717762238332,-156.160569,0.00029861,2]
[328743994,1717762238341,-169.68411213,0.00029861,2]
[328743995,1717762238351,-163.1322461,0.00029861,2]
[328743996,1717762238360,-959.08973281,0.00029861,2]
[328743997,1717762238370,-4024.29763669,0.00029861,2]
[328743998,1717762238380,-7546.90186846,0.00029861,2]
[328743999,1717762238390,-582.69768999,0.00029861,2]
[328744000,1717762238400,-326.93941435,0.00029861,2]
[328744001,1717762238410,-524.31938049,0.00029861,2]
[328744002,1717762238419,-269.42992695,0.00029861,2]
[328744003,1717762238430,-285.21638539,0.00029861,2]
[328744004,1717762238441,-253.43737979,0.00029861,2]
[328744005,1717762238451,-313.27854964,0.00029861,2]
[328744006,1717762238460,-630.52458214,0.00029861,2]
[328744007,1717762238470,-468.50367616,0.00029861,2]
[328744008,1717762238480,-208.21284041,0.00029861,2]
[328744009,1717762238489,-297.04712645,0.00029861,2]
[328744010,1717762238499,-165.53647252,0.00029861,2]
[328744011,1717762238509,-237.2362967,0.00029861,2]
[328744012,1717762238520,-325.91852,0.00029861,2]
[328744013,1717762238529,-251.45160725,0.00029861,2]
[328744014,1717762238539,-178.07702271,0.00029861,2]
[328744015,1717762238549,-206.6296269,0.00029861,2]
[328744016,1717762238559,-450.50590162,0.00029861,2]
[328744017,1717762238568,-936.32074566,0.00029861,3]
[328744018,1717762238578,-1690.87815907,0.00029861,2]
[328744019,1717762238587,-155.0,0.00029861,2]
[328744020,1717762238596,-217.32072534,0.00029861,2]
[328744021,1717762238607,-155.0,0.00029861,2]
[328744022,1717762238618,-296.73910105,0.00029861,2]
[328744023,1717762238628,-227.98695399,0.00029861,2]
[328744024,1717762238638,-327.87677653,0.00029862,2]
[328744025,1717762238648,-1093.52382414,0.00029862,15]
[328744026,1717762238849,-150.0,0.00029862,2]
[328744027,1717762238861,-150.0,0.00029862,2]
[328744028,1717762238871,-300.0,0.00029862,2]
[328744029,1717762238881,-454.37478098,0.00029862,2]
[328744030,1717762238891,-2000.0,0.00029862,21]
[328744031,1717762238901,-2000.0,0.00029862,21]
[328744032,1717762238911,-2000.0,0.00029862,21]
[328744033,1717762238920,-2000.0,0.00029862,21]
[328744034,1717762238930,-2000.0,0.00029862,21]
[328744035,1717762238939,-2000.0,0.00029862,21]
[328744036,1717762238949,-2000.0,0.00029862,21]
[328744037,1717762238959,-2000.0,0.00029862,21]
[328744038,1717762238968,-2000.0,0.00029862,21]
[328744039,1717762238983,-2000.0,0.00029862,21]
[328744040,1717762238992,-2000.0,0.00029862,21]
[328744041,1717762239002,-2000.0,0.00029862,21]
[328744042,1717762239012,-2000.0,0.00029862,21]
[328744043,1717762239023,-2000.0,0.00029862,21]
[328744044,1717762239034,-2000.0,0.00029862,21]
[328744045,1717762239044,-1725.04835909,0.00029862,21]
[328744046,1717762239054,-438.37773212,0.00029862,2]
[328744047,1717762239064,-280.3060292,0.00029862,2]
[328744048,1717762239075,-302.83274006,0.00029863,2]
[328744049,1717762239089,-286538.97871357,0.00029863,13]
[328744050,1717762239103,-188241.28130645,0.00029863,13]
[328744051,1717762239116,-3254.7084381,0.00029863,13]
[328744052,1717762239130,-3148.04480263,0.00029863,13]
[328744053,1717762239163,-182527.2099724,0.00029863,13]
[328744054,1717762239197,-347.60502908,0.00029863,13]
[328744055,1717762239321,-483.42331809,0.00029863,13]
[328744077,1717762241429,-2674.0,0.000219,2]
[328744078,1717762241440,-967.26377501,0.00029663,7]
[328744079,1717762241450,-62261.62208574,0.00029863,13]
[328744080,1717762241462,-420.91309689,0.00029863,13]
[328744081,1717762241510,-120389.36625532,0.00029863,13]
[328744082,1717762241525,-80688.76295553,0.00029863,13]
[328744083,1717762241538,-2790.94178023,0.00029863,13]
[328744084,1717762241550,-7189.10960299,0.00029863,13]
[328744085,1717762241562,-7177.7,0.00029863,13]
[328744086,1717762241573,-17902.17997761,0.00029863,13]
[328744099,1717762243515,-160.495137,0.00027732,2]
[328744100,1717762243527,-160.495137,0.00028079,2]
[328744101,1717762243538,-160.495137,0.00028426,2]
[328744102,1717762243551,-160.495137,0.00028772,2]
[328744103,1717762243562,-1093.95619547,0.00028884,2]
[328744104,1717762243575,-22806.04380453,0.00028884,2]
[328744105,1717762243584,-47796.76860374,0.00029863,13]
[328744106,1717762243597,-7761.59273475,0.00029863,13]
[328744107,1717762243610,-2041.65011018,0.00029863,13]
[328744108,1717762243626,-2350.94954248,0.00029863,13]
[328744109,1717762243638,-5505.85469232,0.00029863,13]
[328744110,1717762243651,-1497.48281309,0.00029863,13]
[328744111,1717762243663,-349.08175769,0.00029863,13]
[328744112,1717762243675,-12124.82254512,0.00029863,13]
[328744113,1717762243687,-1694.18396529,0.00029863,13]
[328744114,1717762243699,-1519.7041436,0.00029863,13]
[328744115,1717762243711,-9197.55156266,0.00029863,13]
[328744116,1717762243729,-160.495137,0.00029119,2]
[328744117,1717762243739,-1112510.60427154,0.00029863,13]
[328744118,1717762243748,-1424.90573958,0.00029863,2]
[328744119,1717762243757,-500.0,0.00029863,4]
[328744120,1717762243767,-590.60900829,0.00029863,4]
[328744121,1717762243778,-500.0,0.00029863,4]
[328744122,1717762243788,-500.0,0.00029863,4]
[328744123,1717762243797,-191.76849709,0.00029863,4]
[328744124,1717762243807,-500.0,0.00029863,4]
[328744125,1717762243816,-500.0,0.00029863,4]
[328744126,1717762243825,-507.99630804,0.00029863,4]
[328744127,1717762243834,-500.0,0.00029863,4]
[328744128,1717762243843,-500.0,0.00029863,4]
[328744129,1717762243852,-500.0,0.00029863,4]
[328744130,1717762243862,-500.0,0.00029863,4]
[328744131,1717762243872,-500.0,0.00029863,4]
[328744132,1717762243882,-500.0,0.00029863,4]
[328744133,1717762243891,-500.0,0.00029863,4]
[328744134,1717762243901,-500.0,0.00029863,4]
[328744135,1717762243911,-500.0,0.00029863,4]
[328744136,1717762243922,-500.0,0.00029863,4]
[328744137,1717762243932,-296.39180982,0.00029863,4]
[328744138,1717762243942,-277.51243975,0.00029863,4]
[328744139,1717762243952,-407.94467066,0.00029863,4]
[328744140,1717762243961,-500.0,0.00029863,4]
[328744141,1717762243972,-500.0,0.00029863,4]
[328744142,1717762243982,-513.53084185,0.00029863,4]
[328744143,1717762243992,-338.10237876,0.00029863,4]
[328744144,1717762244001,-500.0,0.00029863,4]
[328744145,1717762244012,-500.0,0.00029863,4]
[328744146,1717762244028,-500.0,0.00029863,4]
[328744147,1717762244038,-716.23458641,0.00029863,3]
[328744148,1717762244047,-500.0,0.00029863,4]
[328744149,1717762244057,-500.0,0.00029863,4]
[328744150,1717762244066,-500.0,0.00029863,4]
[328744151,1717762244076,-500.0,0.00029863,4]
[328744152,1717762244087,-500.0,0.00029863,4]
[328744153,1717762244100,-500.0,0.00029863,4]
[328744154,1717762244110,-500.0,0.00029863,4]
[328744155,1717762244120,-500.0,0.00029863,4]
[328744156,1717762244130,-577.47813567,0.00029863,4]
[328744157,1717762244141,-510.0817999,0.00029863,4]
[328744158,1717762244151,-257.41239021,0.00029863,4]
[328744159,1717762244160,-500.0,0.00029863,4]
[328744160,1717762244172,-500.0,0.00029863,4]
[328744161,1717762244182,-500.0,0.00029863,4]
[328744162,1717762244192,-500.0,0.00029863,4]
[328744163,1717762244203,-500.0,0.00029863,4]
[328744164,1717762244213,-485.49998408,0.00029863,4]
[328744165,1717762244223,-376.56244272,0.00029863,4]
[328744166,1717762244233,-544.81906592,0.00029863,4]
[328744167,1717762244243,-500.0,0.00029863,4]
[328744168,1717762244252,-500.0,0.00029863,4]
[328744169,1717762244262,-500.0,0.00029863,4]
[328744170,1717762244277,-500.0,0.00029863,4]
[328744171,1717762244287,-334.72368986,0.00029863,4]
[328744172,1717762244296,-500.0,0.00029863,4]
[328744173,1717762244306,-500.0,0.00029863,4]
[328744174,1717762244317,-500.0,0.00029863,4]
[328744175,1717762244326,-500.0,0.00029863,4]
[328744176,1717762244335,-509.75983041,0.00029863,4]
[328744177,1717762244345,-500.0,0.00029863,4]
[328744178,1717762244354,-500.0,0.00029863,4]
[328744179,1717762244363,-500.0,0.00029863,4]
[328744180,1717762244373,-500.0,0.00029863,4]
[328744181,1717762244382,-500.0,0.00029863,4]
[328744182,1717762244392,-500.0,0.00029863,4]
[328744183,1717762244402,-500.0,0.00029863,4]
[328744184,1717762244411,-500.0,0.00029863,4]
[328744185,1717762244421,-500.0,0.00029863,4]
[328744186,1717762244430,-503.42080797,0.00029863,4]
[328744187,1717762244440,-500.0,0.00029863,4]
[328744188,1717762244450,-500.0,0.00029863,4]
[328744189,1717762244460,-502.83422537,0.00029863,4]
[328744190,1717762244470,-523.45654584,0.00029863,4]
[328744191,1717762244480,-500.0,0.00029863,4]
[328744192,1717762244490,-500.0,0.00029863,4]
[328744193,1717762244500,-151.0,0.00029863,7]
[328744194,1717762244510,-157.025465,0.00029863,7]
[328744195,1717762244523,-500.0,0.00029863,4]
[328744196,1717762244534,-209.81912399,0.00029863,4]
[328744197,1717762244544,-500.0,0.00029863,4]
[328744198,1717762244554,-500.0,0.00029863,4]
[328744199,1717762244565,-500.0,0.00029863,4]
[328744200,1717762244575,-500.0,0.00029863,4]
[328744201,1717762244585,-500.0,0.00029863,4]
[328744202,1717762244595,-500.0,0.00029863,4]
[328744203,1717762244605,-500.0,0.00029863,4]
[328744205,1717762244615,-500.0,0.00029863,4]
[328744207,1717762244625,-500.0,0.00029863,4]
[328744208,1717762244634,-500.0,0.00029863,4]
[328744211,1717762244644,-500.0,0.00029863,4]
[328744213,1717762244654,-500.0,0.00029863,4]
[328744214,1717762244664,-500.0,0.00029863,4]
[328744215,1717762244673,-500.0,0.00029863,4]
[328744216,1717762244683,-259.57150424,0.00029863,4]
[328744217,1717762244693,-250.0,0.00029863,4]
[328744218,1717762244703,-250.0,0.00029863,4]
[328744219,1717762244712,-250.0,0.00029863,4]
[328744220,1717762244722,-326.48,0.00029863,4]
[328744221,1717762244733,-500.0,0.00029863,4]
[328744222,1717762244743,-500.0,0.00029863,4]
[328744223,1717762244753,-500.0,0.00029863,4]
[328744224,1717762244764,-447.70168929,0.00029863,4]
[328744225,1717762244775,-500.0,0.00029863,4]
[328744226,1717762244785,-455.24704471,0.00029863,4]
[328744227,1717762244795,-500.0,0.00029863,4]
[328744228,1717762244805,-500.0,0.00029863,4]
[328744229,1717762244815,-500.0,0.00029863,4]
[328744230,1717762244825,-500.0,0.00029863,4]
[328744231,1717762244835,-500.0,0.00029863,4]
[328744232,1717762244844,-500.0,0.00029863,4]
[328744233,1717762244854,-500.0,0.00029863,4]
[328744234,1717762244864,-500.0,0.00029863,4]
[328744235,1717762244874,-500.0,0.00029863,4]
[328744237,1717762244884,-500.0,0.00029863,4]
[328744239,1717762244894,-500.0,0.00029863,4]
[328744241,1717762244904,-500.0,0.00029863,4]
[328744243,1717762244913,-500.0,0.00029863,4]
[328744245,1717762244923,-549.84806466,0.00029863,4]
[328744247,1717762244933,-500.0,0.00029863,4]
[328744249,1717762244943,-500.0,0.00029863,4]
[328744251,1717762244952,-169.92731484,0.00029863,4]
[328744253,1717762244962,-500.0,0.00029863,4]
[328744255,1717762244972,-500.0,0.00029863,4]
[328744257,1717762244981,-500.0,0.00029863,4]
[328744259,1717762244991,-500.0,0.00029863,4]
[328744261,1717762245002,-500.0,0.00029863,4]
[328744263,1717762245012,-500.0,0.00029863,4]
[328744265,1717762245024,-500.0,0.00029863,4]
[328744267,1717762245034,-579.9115326,0.00029863,4]
[328744269,1717762245044,-500.0,0.00029863,4]
[328744271,1717762245054,-500.0,0.00029863,4]
[328744273,1717762245064,-500.0,0.00029863,4]
[328744275,1717762245074,-500.0,0.00029863,4]
[328744277,1717762245088,-624.58,0.00029863,4]
[328744279,1717762245098,-500.0,0.00029863,4]
[328744281,1717762245108,-500.0,0.00029863,4]
[328744283,1717762245118,-500.0,0.00029863,4]
[328744285,1717762245130,-500.0,0.00029863,4]
[328744287,1717762245140,-500.0,0.00029863,4]
[328744289,1717762245150,-500.0,0.00029863,4]
[328744291,1717762245159,-500.0,0.00029863,4]
[328744293,1717762245170,-500.0,0.00029863,4]
[328744295,1717762245181,-500.0,0.00029863,4]
[328744297,1717762245190,-500.0,0.00029863,4]
[328744299,1717762245200,-500.0,0.00029863,4]
[328744301,1717762245210,-244.75633949,0.00029863,4]
[328744303,1717762245219,-500.0,0.00029863,4]
[328744305,1717762245229,-500.0,0.00029863,4]
[328744307,1717762245239,-500.0,0.00029863,4]
[328744309,1717762245248,-500.0,0.00029863,4]
[328744311,1717762245259,-403.97979197,0.00029863,4]
[328744313,1717762245272,-500.0,0.00029863,4]
[328744316,1717762245282,-500.0,0.00029863,4]
[328744318,1717762245291,-500.0,0.00029863,4]
[328744319,1717762245300,-500.0,0.00029863,4]
[328744322,1717762245310,-500.0,0.00029863,4]
[328744324,1717762245319,-500.0,0.00029863,4]
[328744326,1717762245328,-500.0,0.00029863,4]
[328744328,1717762245338,-500.0,0.00029863,4]
[328744330,1717762245348,-500.0,0.00029863,4]
[328744332,1717762245358,-500.0,0.00029863,4]
[328744334,1717762245367,-500.0,0.00029863,4]
[328744336,1717762245378,-500.0,0.00029863,4]
[328744338,1717762245387,-500.0,0.00029863,4]
[328744340,1717762245396,-500.0,0.00029863,4]
[328744342,1717762245405,-500.0,0.00029863,4]
[328744344,1717762245415,-500.0,0.00029863,4]
[328744346,1717762245424,-500.0,0.00029863,4]
[328744348,1717762245434,-500.0,0.00029863,4]
[328744350,1717762245443,-500.0,0.00029863,4]
[328744352,1717762245453,-500.0,0.00029863,4]
[328744354,1717762245463,-550.50165183,0.00029863,4]
[328744356,1717762245472,-500.0,0.00029863,4]